Cogmind - Beta 11.1 @@@ ROGUE MODE // 2022.10.08 @ 00:22:07 Player: DuckBoy Result: Destroyed by G-50 Soldier with Heavy Laser Performance ------------- Evolutions (4) 2000 Regions Visited (13) 2600 Robots Destroyed (145) 725 Value Destroyed (4981) 4981 Prototype IDs (46) 920 Alien Tech Used (0) 0 Bonus (2775) 2775 TOTAL SCORE: 14001 Bonus ------- High Alert Combat Kills 462 Follower Combat Kills 543 Entered Garrisons 200 Used RIF Installer 500 Aligned with FarCom 300 Triggered Deep Caves Wall 500 Exposed GOLEM Chamber 500 Friendly Fire -230 Cogmind --------- Core Integrity 0/850 Matter 134/300 Energy 875/1100 System Corruption 22% Temperature Cool (9) Movement Walking (185) Ox1 Location -5/Proximity Caves Parts ------- > --- POWER (2) -------- Assembled Flux Generator > --- PROPULSION (4) --- Enhanced Armored Leg Enhanced Armored Leg Assembled Alloy Leg Assembled Alloy Leg > --- UTILITY (6) ------ Assembled Nanovents Huge Storage Unit Assembled Biocell Array Core Analyzer GOLEM Unit > --- WEAPON (3) ------- Assembled Focal Cannon Assembled Focal Cannon Assembled Focal Cannon > --- INVENTORY (25) --- Improved Deuterium Engine Makeshift Power Source Flexi-carbon Leg Enhanced Armored Leg Armored Huge Wheel Zionite Biocell (600) GOLEM Unit Shock Rifle Heavy EM Shotgun Cooled Phase Gun EM Pulse Cannon Long-range Phase Cannon Improved KE Penetrator Improved KE Penetrator Phasing Sabre Peak State ------------ > --- POWER ------------ Assembled Flux Generator > --- PROPULSION ------- Enhanced Armored Leg Enhanced Armored Leg Assembled Alloy Leg Assembled Alloy Leg > --- UTILITY ---------- Assembled Nanovents Huge Storage Unit Assembled Biocell Array Core Analyzer GOLEM Unit > --- WEAPON ----------- Assembled Focal Cannon Assembled Focal Cannon Assembled Focal Cannon > --- INVENTORY -------- Improved Deuterium Engine Makeshift Power Source Flexi-carbon Leg Enhanced Armored Leg Armored Huge Wheel Zionite Biocell GOLEM Unit Shock Rifle Heavy EM Shotgun Cooled Phase Gun EM Pulse Cannon Long-range Phase Cannon Improved KE Penetrator Improved KE Penetrator Phasing Sabre [Rating: 124] Favorites ----------- Power F-cell Engine Engine F-cell Engine Power Core Nuclear Core Reactor Assembled Flux Generator Propulsion Armored Huge Wheel Treads Light Treads Leg Assembled Alloy Leg Wheel Armored Huge Wheel Utility Improved Cooling System Device Improved Cooling System Storage Huge Storage Unit Processor Core Analyzer Hackware Hacking Suite Protection Improved Light Armor Plating Weapon Enhanced Autogun Energy Gun Cooled Phase Gun Energy Cannon Long-range Phase Cannon Ballistic Gun Enhanced Autogun Ballistic Cannon Light Cannon Launcher Neutron Missile Launcher Special Weapon Remote Datajack Slashing Weapon Phasing Sabre Build | -11 -10 -10 -10 -9 -8 -8 -7 -6 -6 -6 -6 -6 -5 ------- Run | Scr Mat Min Exi Min Mat Gar Fac Fac Low Low Zio Dee Pro Slots Evolved 8 | . . . . . 4 . 2 2 . . . . . Power 1 | . . . . . . . . 1 . . . . . Propulsion 2 | . . . . . . . 2 . . . . . . Utility 4 | . . . . . 4 . . . . . . . . Weapon 1 | . . . . . . . . 1 . . . . . Parts Attached 162 | 5 9 3 . . 37 7 27 12 1 7 20 32 2 Power 13 | . 1 . . . 3 . 1 1 . . 4 3 . Engine 12 | . 1 . . . 3 . 1 1 . . 3 3 . Core 1 | . . . . . . . . . . . 1 . . Reactor . | . . . . . . . . . . . . . . Propulsion 31 | 2 1 1 . . 9 . 8 . . 1 3 4 2 Treads 12 | . 1 . . . 5 . . . . 1 2 3 . Leg 7 | . . . . . . . 4 . . . 1 . 2 Wheel 12 | 2 . 1 . . 4 . 4 . . . . 1 . Hover . | . . . . . . . . . . . . . . Flight . | . . . . . . . . . . . . . . Utility 56 | 1 3 . . . 16 7 6 6 . 2 5 10 . Device 27 | . . . . . 10 5 2 4 . 1 2 3 . Storage 6 | 1 2 . . . . 1 . 1 . . . 1 . Processor 3 | . . . . . . . . . . . 1 2 . Hackware 3 | . . . . . . . 2 . . . 1 . . Protection 17 | . 1 . . . 6 1 2 1 . 1 1 4 . Artifact . | . . . . . . . . . . . . . . Weapon 62 | 2 4 2 . . 9 . 12 5 1 4 8 15 . Energy Gun 17 | 2 . . . . 1 . 2 2 . 1 1 8 . Energy Cannon 8 | . . . . . . . 3 1 . . 3 1 . Ballistic Gun 24 | . 4 1 . . 6 . 5 1 . 2 4 1 . Ballistic Cannon 1 | . . . . . 1 . . . . . . . . Launcher 9 | . . 1 . . 1 . 2 . 1 1 . 3 . Special Weapon 1 | . . . . . . . . 1 . . . . . Impact Weapon . | . . . . . . . . . . . . . . Slashing Weapon 2 | . . . . . . . . . . . . 2 . Piercing Weapon . | . . . . . . . . . . . . . . Special Melee Weapon . | . . . . . . . . . . . . . . Unidentified Prototypes 16 | . . . . . 2 . 10 1 . . . 3 . Parts Lost 47 | . 2 . . . 13 . 3 . 1 2 7 19 . Power 6 | . . . . . 2 . . . . . 2 2 . Propulsion 7 | . . . . . 2 . . . . 1 . 4 . Utility 22 | . . . . . 7 . 3 . 1 1 4 6 . Weapon 12 | . 2 . . . 2 . . . . . 1 7 . Highest Loss Streak 11 | . 1 . . . 5 . 1 . 1 2 3 11 . To Critical Strikes . | . . . . . . . . . . . . . . Average Slot Usage (%) 79 | . 86 100 100 100 82 60 84 81 80 75 82 84 67 Engine 9 | . 8 14 14 14 8 9 6 10 13 13 9 11 2 Treads 7 | . 9 8 . . 5 18 . . . 2 10 13 . Leg 2 | . . . . . . . 3 . . . 2 3 15 Wheel 7 | . 18 19 28 28 11 . 12 13 13 6 2 1 . Device 13 | . . . . . 17 12 29 17 20 12 15 13 10 Storage 7 | . 14 14 14 14 9 1 7 6 6 6 6 6 10 Processor 1 | . . . . . . . . . . . 1 5 6 Protection 7 | . 6 14 14 14 12 1 6 6 6 12 9 7 . Energy Gun 2 | . 5 . . . . . . 4 . 2 3 10 1 Energy Cannon 3 | . . . . . . . . 11 13 8 5 . 11 Ballistic Gun 10 | . 22 27 28 28 15 18 12 . . 6 7 3 . Naked Turns . | . . . . . . . . . . . . . . Heaviest Build 168 | 9 52 53 52 52 67 91 93 153 147 146 153 134 168 Greatest Support 123 | 32 32 32 32 32 40 40 60 56 56 28 103 123 100 Greatest Overweight (x) 5 | . 3 3 1 1 3 2 3 2 2 5 4 4 3 Average Overweight (x) 1 | . 2 2 1 1 1 1 1 1 2 5 2 1 1 Largest Inventory Capacity 25 | 8 20 20 20 20 20 20 20 25 25 25 25 25 25 Average Capacity 20 | 6 19 20 20 20 20 7 20 23 25 25 25 25 25 Most Carried 25 | 3 13 14 20 20 20 20 20 25 25 25 25 25 19 Average Carried 17 | 1 10 11 15 20 19 5 19 22 25 23 22 23 17 Final Capacity 25 | 8 20 20 20 20 20 20 20 25 25 25 25 25 25 Final Carried 25 | 3 11 14 20 20 20 20 19 25 25 22 25 13 17 Class Distribution -------------------- 56% | Mutant 20% | Scavenger-Mutant 7% | Scavenger-Tank 6% | Golem 5% | Tank Dominant Class ---------------- Mutant | -10/Materials Mutant | -10/Mines Mutant | -10/Exiles Mutant | -9/Mines Mutant | -8/Materials Mutant | -8/Garrison Mutant | -7/Factory Mutant | -6/Factory Mutant | -6/Lower Caves Tank | -6/Lower Caves Scavenger-Tank | -6/Zion Scavenger-Mutant | -6/Deep Caves Golem | -5/Proximity Caves Resources | -11 -10 -10 -10 -9 -8 -8 -7 -6 -6 -6 -6 -6 -5 ----------- Run | Scr Mat Min Exi Min Mat Gar Fac Fac Low Low Zio Dee Pro Matter Collected 4885 | 203 315 136 . . 1471 163 615 306 248 151 678 431 168 Remotely . | . . . . . . . . . . . . . . Salvage Created 7238 | . 459 7 . . 2121 102 800 577 368 158 1422 1139 85 Parts 345 | . 29 . . . 119 3 39 31 10 5 91 14 4 Haulers Intercepted 8 | . 1 . . . 3 . 3 1 . . . . . Recyclers Shooed 3 | . 1 . . . 2 . . . . . . . . Parts Field Recycled . | . . . . . . . . . . . . . . Retrieved Matter . | . . . . . . . . . . . . . . Parts Self-Destructed 20 | . . . . . . . . . 7 9 . . 4 Prevented . | . . . . . . . . . . . . . . Kills | -11 -10 -10 -10 -9 -8 -8 -7 -6 -6 -6 -6 -6 -5 ------- Run | Scr Mat Min Exi Min Mat Gar Fac Fac Low Low Zio Dee Pro Combat Hostiles Destroyed 167 | . 7 7 . . 31 2 14 6 11 6 3 79 1 Melee 6 | . . . . . . . . . . . . 6 . Guns 50 | . 7 . . . 23 2 5 . . 1 2 10 . Cannons 17 | . . . . . 2 . 1 4 5 1 . 3 1 AOE 90 | . . 7 . . 6 . 8 1 6 4 . 58 . Classes Destroyed 23 | . 7 1 . . 7 . . 1 1 . 3 2 1 Worker 5 | . 1 . . . 2 . 1 1 . . . . . Builder 4 | . . . . . 1 . 1 2 . . . . . Tunneler 1 | . . . . . 1 . . . . . . . . Hauler 8 | . 1 . . . 3 . 3 1 . . . . . Recycler 10 | . 1 . . . 7 . 1 1 . . . . . Mechanic 3 | . . . . . 1 . 1 . . 1 . . . Operator 3 | . 1 . . . . . 2 . . . . . . Watcher 6 | . 2 . . . 2 . . 2 . . . . . Swarmer 18 | . 2 . . . 6 . . 2 4 4 . . . Grunt 42 | . 5 . . . 16 2 10 . 7 2 . . . Duelist 3 | . . . . . 2 . 1 . . . . . . Sentry 7 | . . . . . 5 . . 2 . . . . . Hunter 3 | . . . . . 1 . 2 . . . . . . Programmer 2 | . . . . . . . . 2 . . . . . Heavy 2 | . . . . . 1 . 1 . . . . . . Behemoth 1 | . . . . . . . . . . . . . 1 Zionite 51 | . . . . . . . . . . . 51 . . Samaritan 1 | . . . . . . . . . 1 . . . . Tinkerer 1 | . . . . . . . . . . . 1 . . Assembler 2 | . . . . . . . . . . . . 2 . Assembled 79 | . . 7 . . . . . . . . . 72 . Golem 7 | . . . . . . . . . . . . 7 . Surgeon 1 | . . . . . . . . . . . 1 . . Butcher 1 | . . . . . . . . . . . 1 . . Mutant 1 | . . . . . . . . . . . 1 . . Best Kill Streak 38 | . 3 7 . . 6 2 6 2 4 4 13 38 1 Combat Bots Only 37 | . 3 7 . . 6 2 4 2 4 4 1 37 1 Max Kills in Single Turn 21 | . 1 3 . . 4 2 6 2 3 4 2 21 1 Gunslinging 1 | . . . . . . . . . . . . 1 . Exploded 21 | . . 3 . . 4 . 4 1 2 4 . 21 . Melee 1 | . . . . . . . . . . . . 1 . Uniques/NPCs Destroyed 1 | . . . . . . . . . . . 1 . . Imprinter (-6/Zion) Combat | -11 -10 -10 -10 -9 -8 -8 -7 -6 -6 -6 -6 -6 -5 -------- Run | Scr Mat Min Exi Min Mat Gar Fac Fac Low Low Zio Dee Pro Damage Taken 9876 | . 490 118 . . 1872 81 890 316 564 591 1293 3233 428 Core 1307 | . 77 41 . . 211 14 106 38 36 77 106 557 44 Absorbed by Shields 25 | . . . . . . 25 . . . . . . . Redirected to Shielding 156 | . . . . . . . . . . . . 156 . Regen/Repaired (Parts) 339 | . . . . . . . . . 339 . . . . Core Remaining (%) 73 | 100 . . . 52 . 59 84 . . . . . . Volleys Fired 572 | . 36 12 . . 171 10 37 43 19 12 122 104 6 Largest 3 | . 2 2 . . 2 2 2 3 3 3 3 3 3 Hottest 260 | . 80 40 . . 60 50 154 260 259 259 243 188 75 Shots Fired 1151 | . 71 17 . . 314 13 69 79 41 26 326 176 19 Gun 767 | . 71 10 . . 257 13 50 2 8 8 194 152 2 Cannon 334 | . . . . . 51 . 7 74 25 16 132 12 17 Launcher 48 | . . 7 . . 6 . 12 1 8 2 . 12 . Special 2 | . . . . . . . . 2 . . . . . Kinetic 576 | . 63 10 . . 298 13 50 . 8 4 115 15 . Thermal 434 | . . . . . . . 7 74 25 20 211 78 19 Explosive 48 | . . 7 . . 6 . 12 1 8 2 . 12 . Electromagnetic 91 | . 8 . . . 10 . . 2 . . . 71 . Robot Hit Streak 19 | . 13 8 . . 19 2 13 17 4 4 10 15 8 Robot Miss Streak 5 | . 2 3 . . 4 2 2 4 4 5 4 5 1 Penetration Max 1 | . . . . . . . 1 . . . 1 1 . Secondary Targets 9 | . 1 . . . 3 . . . . . 2 3 . Max Gunslinging Chain 1 | . 1 . . . 1 . . . . . 1 1 . Shots Hit Robots 659 | . 52 11 . . 209 3 50 29 18 14 157 103 13 Core Hits 402 | . 23 26 . . 85 3 33 11 16 9 56 137 3 Critical Kills 8 | . . . . . 1 . 1 1 . . 4 1 . Critical Parts Destroyed 8 | . . . . . 4 . . . . . 2 2 . Critical Strikes 20 | . . . . . 5 . 1 1 . . 9 4 . Burn 4 | . . . . . . . . . . . 3 1 . Meltdown 4 | . . . . . . . . 1 . . 3 . . Destroy 12 | . . . . . 5 . 1 . . . 3 3 . Melee Attacks 34 | . . . . . . . . . . . . 34 . Impact . | . . . . . . . . . . . . . . Slashing 34 | . . . . . . . . . . . . 34 . Piercing . | . . . . . . . . . . . . . . Sneak Attacks . | . . . . . . . . . . . . . . Combat Hostiles . | . . . . . . . . . . . . . . Follow-up Attacks . | . . . . . . . . . . . . . . Damage Inflicted 28781 | . 687 771 . . 3642 59 2736 1297 2098 1241 4500 11123 627 Guns 8748 | . 659 74 . . 2786 59 693 50 35 75 2910 1407 . Cannons 5132 | . . . . . 551 . 216 1111 448 335 1590 254 627 Explosions 13432 | . 28 697 . . 299 . 1827 136 1615 831 . 7999 . Melee 1420 | . . . . . . . . . . . . 1420 . Ramming 49 | . . . . . 6 . . . . . . 43 . Kinetic 6530 | . 568 74 . . 3337 59 693 . 35 22 1478 264 . Thermal 6682 | . 28 . . . . . 255 1111 448 388 3022 803 627 Explosive 13365 | . . 697 . . 299 . 1788 136 1615 831 . 7999 . Electromagnetic 735 | . 91 . . . . . . 50 . . . 594 . Impact . | . . . . . . . . . . . . . . Slashing 1420 | . . . . . . . . . . . . 1420 . Piercing . | . . . . . . . . . . . . . . Highest Corruption 22 | . . . . . 1 1 . 2 2 2 7 22 22 Average Corruption 6 | . . . . . 1 1 . 1 2 2 4 9 22 Corruption Purged . | . . . . . . . . . . . . . . Corruption Blocked 8 | . . . . . . . 8 . . . . . . Effects 173 | . . . . . 1 15 . 11 8 5 26 72 35 Message Errors 37 | . . . . . . 4 . 2 3 . 4 18 6 Matter Fused 38 | . . . . . 1 3 . 2 . 3 8 12 9 Heat Flow Errors 19 | . . . . . . 2 . 4 . 1 2 7 3 Energy Discharges 33 | . . . . . . 4 . 1 3 . 6 9 10 Parts Rejected 5 | . . . . . . . . . . 1 1 3 . Data Loss (minor) 11 | . . . . . . 1 . 1 . . 1 7 1 Data Loss (major) 7 | . . . . . . 1 . . . . 1 3 2 Misfires 10 | . . . . . . . . 1 . . 2 5 2 Alerts 5 | . . . . . . . . . 1 . . 3 1 Weapon Failures 8 | . . . . . . . . . 1 . 1 5 1 Overload Shots 14 | . . . . . . . . . . . 3 11 . Overflow Damage 937 | . . 12 . . 16 . 137 84 115 88 39 446 . Projectiles 219 | . . . . . 16 . . 84 18 27 39 35 . Explosions 718 | . . 12 . . . . 137 . 97 61 . 411 . Melee . | . . . . . . . . . . . . . . Knockbacks 9 | . . . . . 9 . . . . . . . . Impact . | . . . . . . . . . . . . . . Kinetic 9 | . . . . . 9 . . . . . . . . Secondary . | . . . . . . . . . . . . . . Self-Inflicted Damage 239 | . . . . . . . . . . 94 . 145 . Shots 3 | . . . . . . . . . . 1 . 2 . Rammed 4 | . . . . . 1 . . . . . . 3 . Targets Rammed 4 | . . . . . 1 . . . . . . 3 . Kicked . | . . . . . . . . . . . . . . Crushed . | . . . . . . . . . . . . . . Highest Temperature 465 | . 31 32 . . 23 171 66 223 96 345 170 465 233 Average Temperature 99 | . 6 21 . . 9 55 33 72 37 172 73 159 96 Received Heat Transfer 2694 | . 159 40 . . 756 45 159 27 96 153 279 914 66 Effects 2 | . . . . . . . . . . . . 2 . Interference 2 | . . . . . . . . . . . . 2 . Siege Activations 4 | . . . . . . . . . . . 2 2 . Total Turns 31 | . . . . . . . . . . . 17 14 . Longest Duration 12 | . . . . . . . . . . . 12 9 . Robots Corrupted 2 | . . . . . . . . . . . . 2 . Combat Hostiles 2 | . . . . . . . . . . . . 2 . Parts Fried . | . . . . . . . . . . . . . . Impact Corruptions . | . . . . . . . . . . . . . . Robots Melted 6 | . . . . . . . . 1 . . 5 . . Combat Hostiles 2 | . . . . . . . . 1 . . 1 . . Parts Melted 19 | . . . . . . . . 3 1 1 13 . 1 Heat Transferred 7205 | . 50 . . . . . 272 999 407 407 3753 992 325 Parts Sabotaged . | . . . . . . . . . . . . . . Parts Stolen . | . . . . . . . . . . . . . . Parts Stripped . | . . . . . . . . . . . . . . Power Chain Reactions 4 | . 1 . . . . . 3 . . . . . . Missiles Intercepted . | . . . . . . . . . . . . . . Alert | -11 -10 -10 -10 -9 -8 -8 -7 -6 -6 -6 -6 -6 -5 ------- Run | Scr Mat Min Exi Min Mat Gar Fac Fac Low Low Zio Dee Pro Peak Influence 1946 | . 222 132 . . 448 1946 1106 597 . . . . . Initial 1021 | . . 54 . . . 293 1021 490 . . . . . Average 644 | . 99 81 . . 154 1504 898 190 . . . . . Maximum Alert Level 5 | . 1 . . . 2 5 4 2 . . . . . Low Security (%) 44 | 100 76 100 . 100 71 . . 77 . . . . . Level 1 8 | . 23 . . . 17 7 . . . . . . . Level 2 8 | . . . . . 11 6 . 22 . . . . . Level 3 15 | . . . . . . 7 98 . . . . . . Level 4 5 | . . . . . . 18 1 . . . . . . Level 5 17 | . . . . . . 59 . . . . . . . High Security . | . . . . . . . . . . . . . . Max Security . | . . . . . . . . . . . . . . Squads Dispatched 14 | . 1 . . . 5 . 5 3 . . . . . Investigation 5 | . . . . . 2 . 1 2 . . . . . Extermination 1 | . . . . . . . . 1 . . . . . Reinforcement 6 | . 1 . . . 3 . 2 . . . . . . Assault 1 | . . . . . . . 1 . . . . . . Garrison 1 | . . . . . . . 1 . . . . . . Intercept . | . . . . . . . . . . . . . . Searches Triggered . | . . . . . . . . . . . . . . Construction Impeded 1 | . . . . . 1 . . . . . . . . Haulers Reinforced . | . . . . . . . . . . . . . . Active Scanning Responses . | . . . . . . . . . . . . . . Cargo Convoy Interrupts 1 | . . . . . . . 1 . . . . . . Stealth | -11 -10 -10 -10 -9 -8 -8 -7 -6 -6 -6 -6 -6 -5 --------- Run | Scr Mat Min Exi Min Mat Gar Fac Fac Low Low Zio Dee Pro Distress Signals 7 | . 2 . . . 4 . . 1 . . . . . Communications Jammed . | . . . . . . . . . . . . . . Distress Signals . | . . . . . . . . . . . . . . Times Spotted 297 | . 17 14 . . 47 26 17 11 11 7 58 86 3 Peak Tracking Total 36 | . 5 11 . . 6 5 5 3 4 4 4 36 2 Tactical Retreats 17 | . 2 . . . 3 1 . . . . 2 9 . Traps | -11 -10 -10 -10 -9 -8 -8 -7 -6 -6 -6 -6 -6 -5 ------- Run | Scr Mat Min Exi Min Mat Gar Fac Fac Low Low Zio Dee Pro Traps Triggered 5 | . 1 . . . . 4 . . . . . . . Indirectly . | . . . . . . . . . . . . . . Trap Hack Attempts . | . . . . . . . . . . . . . . Triggered . | . . . . . . . . . . . . . . Disarmed . | . . . . . . . . . . . . . . Reprogrammed . | . . . . . . . . . . . . . . Reused . | . . . . . . . . . . . . . . Traps Extracted . | . . . . . . . . . . . . . . Installed . | . . . . . . . . . . . . . . Triggered 2 | . . . . . . . 2 . . . . . . Machines | -11 -10 -10 -10 -9 -8 -8 -7 -6 -6 -6 -6 -6 -5 ---------- Run | Scr Mat Min Exi Min Mat Gar Fac Fac Low Low Zio Dee Pro Machines Disabled 14 | . . . . . 1 3 2 2 . . 1 5 . Max in Single Turn 1 | . . . . . 1 1 1 1 . . 1 1 . Garrison Access 3 | . . . . . . . 2 1 . . . . . Garrison Relay 3 | . . . . . . 3 . . . . . . . Machines Sabotaged . | . . . . . . . . . . . . . . Garrisons Compromised 1 | . . . . . . . 1 . . . . . . Overloaded Fab Kills . | . . . . . . . . . . . . . . Hacking | -11 -10 -10 -10 -9 -8 -8 -7 -6 -6 -6 -6 -6 -5 --------- Run | Scr Mat Min Exi Min Mat Gar Fac Fac Low Low Zio Dee Pro Machines Accessed 33 | . 4 . 2 . 8 . 11 8 . . . . . Terminals 21 | . 4 . . . 5 . 7 5 . . . . . Fabricators 3 | . . . . . . . 1 2 . . . . . Repair Stations . | . . . . . . . . . . . . . . Recycling Units 1 | . . . . . 1 . . . . . . . . Scanalyzers 2 | . . . . . 1 . 1 . . . . . . Garrison Access 4 | . . . . . 1 . 2 1 . . . . . Total Hacks 97 | . 16 . 5 . 21 . 33 22 . . . . . Successful 51 | . 4 . 5 . 6 . 20 16 . . . . . Failed 46 | . 12 . . . 15 . 13 6 . . . . . Catastrophic 3 | . 1 . . . . . 2 . . . . . . Database Lockouts . | . . . . . . . . . . . . . . Manual 47 | . 14 . 1 . 5 . 16 7 . . 4 . . Terminals 67 | . 16 . . . 12 . 25 14 . . . . . Fabricators 8 | . . . . . . . 2 6 . . . . . Repair Stations . | . . . . . . . . . . . . . . Recycling Units 5 | . . . . . 5 . . . . . . . . Scanalyzers 5 | . . . . . 3 . 2 . . . . . . Garrison Access 7 | . . . . . 1 . 4 2 . . . . . Terminal Hacks 28 | . 4 . 5 . 3 . 8 8 . . . . . Record 4 | . . . 4 . . . . . . . . . . Part Schematic 6 | . . . . . . . 4 2 . . . . . Robot Schematic 3 | . 2 . . . . . 1 . . . . . . Robot Analysis 2 | . . . . . 1 . . 1 . . . . . Prototype ID Bank 1 | . . . . . 1 . . . . . . . . Branch Access Points 1 | . . . . . . . . 1 . . . . . Emergency Access Points 1 | . . . . . . . 1 . . . . . . Unreport Threat 6 | . . . . . 1 . 2 3 . . . . . Locate Traps 1 | . 1 . . . . . . . . . . . . Patrol Status 1 | . . . . . . . . 1 . . . . . Zone Layout 1 | . 1 . . . . . . . . . . . . EX-Prototype ID Bank 1 | . . . 1 . . . . . . . . . . Fabricator Hacks 6 | . . . . . . . 2 4 . . . . . Load Schematic 3 | . . . . . . . 1 2 . . . . . Build 3 | . . . . . . . 1 2 . . . . . Repair Station Hacks . | . . . . . . . . . . . . . . Recycling Unit Hacks . | . . . . . . . . . . . . . . Scanalyzer 4 | . . . . . 2 . 2 . . . . . . Insert Component 2 | . . . . . 1 . 1 . . . . . . Analyze 2 | . . . . . 1 . 1 . . . . . . Garrison Access Hacks 7 | . . . . . 1 . 4 2 . . . . . Unlock Access 1 | . . . . . 1 . . . . . . . . Seal Access 3 | . . . . . . . 2 1 . . . . . Coupler Status 3 | . . . . . . . 2 1 . . . . . Unauthorized Hacks 6 | . . . . . . . 4 2 . . . . . Terminals 6 | . . . . . . . 4 2 . . . . . Assimilate 1 | . . . . . . . . 1 . . . . . Botnet 4 | . . . . . . . 3 1 . . . . . Operators 1 | . . . . . . . 1 . . . . . . Fabricators . | . . . . . . . . . . . . . . Repair Stations . | . . . . . . . . . . . . . . Recycling Units . | . . . . . . . . . . . . . . Scanalyzers . | . . . . . . . . . . . . . . Garrison Access . | . . . . . . . . . . . . . . Data Cores Recovered . | . . . . . . . . . . . . . . Used . | . . . . . . . . . . . . . . Hacking Detections 27 | . 4 . . . 7 . 9 7 . . . . . Full Trace Events 6 | . . . . . 3 . 1 2 . . . . . Feedback Events 1 | . . . . . 1 . . . . . . . . Corruption 1 | . . . . . 1 . . . . . . . . Feedback Blocked . | . . . . . . . . . . . . . . Robot Schematics Acquired 3 | . 2 . . . . . 1 . . . . . . Robots Built 3 | . . . . . . . 1 2 . . . . . Authchips . | . . . . . . . . . . . . . . Time 120 | . . . . . . . 40 80 . . . . . Total Robot Build Rating 3 | . . . . . . . 1 2 . . . . . Part Schematics Acquired 8 | . . . . . 1 . 5 2 . . . . . Parts Built . | . . . . . . . . . . . . . . Authchips . | . . . . . . . . . . . . . . Time . | . . . . . . . . . . . . . . Total Part Build Rating . | . . . . . . . . . . . . . . Parts Repaired . | . . . . . . . . . . . . . . Time . | . . . . . . . . . . . . . . Parts Recycled . | . . . . . . . . . . . . . . Recycled Matter . | . . . . . . . . . . . . . . Retrieved Matter . | . . . . . . . . . . . . . . Retrieved Components . | . . . . . . . . . . . . . . Parts Scanalyzed 2 | . . . . . 1 . 1 . . . . . . Part Schematics Acquired 2 | . . . . . 1 . 1 . . . . . . Parts Damaged . | . . . . . . . . . . . . . . Bothacking | -11 -10 -10 -10 -9 -8 -8 -7 -6 -6 -6 -6 -6 -5 ------------ Run | Scr Mat Min Exi Min Mat Gar Fac Fac Low Low Zio Dee Pro Used RIF Installer 1 | . . . . . . 1 . . . . . . . Robots Hacked 2 | . . . . . . . . 2 . . . . . Non-combat 2 | . . . . . . . . 2 . . . . . Combat . | . . . . . . . . . . . . . . Robot Hacks Applied 2 | . . . . . . . . 2 . . . . . find_chute 1 | . . . . . . . . 1 . . . . . find_recycling 1 | . . . . . . . . 1 . . . . . Relay Couplers Released 12 | . . . . . . 12 . . . . . . . Machine Destruction 12 | . . . . . . 12 . . . . . . . Attached 2 | . . . . . . . 1 . . . 1 . . Fabnet Peak Effective % . | . . . . . . . . . . . . . . Robots Rewired 1 | . . . . . . . . 1 . . . . . Allies Hacked . | . . . . . . . . . . . . . . Hacks Repelled . | . . . . . . . . . . . . . . Allies | -11 -10 -10 -10 -9 -8 -8 -7 -6 -6 -6 -6 -6 -5 -------- Run | Scr Mat Min Exi Min Mat Gar Fac Fac Low Low Zio Dee Pro Total Allies 5 | . . . . . . . 1 4 . . . . . Largest Group 2 | . . . . . . . 1 2 1 . . . . Highest-Rated Group 40 | . . . . . . . 10 40 14 . . . . Highest-Rated Ally 30 | . . . . . . . 10 30 14 . . . . Total Orders 26 | . . . . . . 15 . . 11 . . . . STAY 3 | . . . . . . . . . 3 . . . . FOLLOW 4 | . . . . . . . . . 4 . . . . AID 4 | . . . . . . . . . 4 . . . . RETURN 15 | . . . . . . 15 . . . . . . . Ally Attacks 138 | . . . . . . 138 . . . . . . . Total Damage 2300 | . . . . . . 2300 . . . . . . . Kills 34 | . . . . . . 34 . . . . . . . Allies Corrupted . | . . . . . . . . . . . . . . Allies Melted . | . . . . . . . . . . . . . . Intel | -11 -10 -10 -10 -9 -8 -8 -7 -6 -6 -6 -6 -6 -5 ------- Run | Scr Mat Min Exi Min Mat Gar Fac Fac Low Low Zio Dee Pro Robot Analysis Total 2 | . . . . . 1 . . 1 . . . . . Derelict Logs Recovered 1 | . . . . . . . . . 1 . . . . Drone Launches 38 | . . . . . . 38 . . . . . . . Drone Recoveries 31 | . . . . . . 31 . . . . . . . Exploration | -11 -10 -10 -10 -9 -8 -8 -7 -6 -6 -6 -6 -6 -5 ------------- Run | Scr Mat Min Exi Min Mat Gar Fac Fac Low Low Zio Dee Pro Turns Passed 12142 | 56 673 403 350 122 1494 2000 919 1132 648 370 1186 1808 981 Spaces Moved 5561 | 45 393 269 304 105 659 624 582 736 424 187 379 625 229 Core 2 | 2 . . . . . . . . . . . . . Treads 1360 | . . . . . 84 624 13 . . . 174 465 . Legs 261 | . . . . . . . 41 . . . . . 220 Wheels 3938 | 43 393 269 304 105 575 . 528 736 424 187 205 160 9 Hover . | . . . . . . . . . . . . . . Flight . | . . . . . . . . . . . . . . Fastest Speed 50 | 50 100 115 115 115 115 160 115 115 130 175 160 145 145 Average Speed 165 | 97 132 134 115 115 135 301 123 124 130 175 196 214 194 Slowest Speed 330 | 100 145 145 115 115 240 320 260 130 130 175 240 330 210 Overloaded Moves . | . . . . . . . . . . . . . . Propulsion Burnouts . | . . . . . . . . . . . . . . Robots Hopped . | . . . . . . . . . . . . . . Cave-ins Triggered . | . . . . . . . . . . . . . . Exploration Rate (%) 45 | 4 65 72 64 22 53 75 17 28 63 32 44 66 27 Regions Visited 13 Branch Regions 8 Pre-discovered Areas 2 | . . 1 1 . . . . . . . . . . Known Exits Taken 2 | . . . . . 1 . . 1 . . . . . Unknown Exits Taken 10 | 1 1 1 1 1 . . 1 . 1 1 1 1 . Scrap Searched 6 | . . 2 . . . . . . 2 1 . . 1 Spaces Dug 51 | . . . . . . . . 19 . . 22 10 . Terrain Destroyed 840 | . 2 34 . . 29 . 149 72 202 106 49 193 4 Melee . | . . . . . . . . . . . . . . Projectile 152 | . . . . . . . 1 37 18 9 49 34 4 AOE 688 | . 2 34 . . 29 . 148 35 184 97 . 159 . Terrain Rammed . | . . . . . . . . . . . . . . Walls Destroyed . | . . . . . . . . . . . . . . Machines Disabled . | . . . . . . . . . . . . . . Actions | -11 -10 -10 -10 -9 -8 -8 -7 -6 -6 -6 -6 -6 -5 --------- Run | Scr Mat Min Exi Min Mat Gar Fac Fac Low Low Zio Dee Pro Total 7452 | 54 475 293 304 106 1010 740 723 874 484 205 553 877 754 Wait 939 | 2 24 7 . 2 105 62 35 64 41 . 20 65 512 Move 5549 | 44 392 268 303 104 659 623 581 735 423 186 378 624 229 Hop . | . . . . . . . . . . . . . . Pick Up 91 | 3 9 3 1 . 19 18 16 9 . . 8 5 . Fast Attach 64 | 5 6 . . . 13 7 14 2 . 1 8 8 . Attach 42 | . 2 . . . 7 . 6 2 . 2 7 14 2 Detach 15 | . 2 . . . 1 . 3 1 . . 2 1 5 Swap 56 | . 1 3 . . 17 . 7 8 1 4 5 10 . Drop 73 | . 3 . . . 17 10 24 7 . . 3 9 . Fire 572 | . 36 12 . . 171 10 37 43 19 12 122 104 6 Melee 34 | . . . . . . . . . . . . 34 . Ram . | . . . . . . . . . . . . . . Kick . | . . . . . . . . . . . . . . Crush 4 | . . . . . 1 . . . . . . 3 . Escape Stasis 9 | . . . . . . 9 . . . . . . . Rewire 4 | . . . . . . 1 . 3 . . . . . Trap . | . . . . . . . . . . . . . . Miscellaneous . | . . . . . . . . . . . . . . Route ------- -11/Scrapyard -10/Materials (discovered 3 exits: [*Mat x2] / [*Min]) -10/Mines (discovered 2 exits: [*Mat] / *Exi) -10/Exiles -9/Mines -8/Materials (discovered 2 exits: *Fac / Gar) -8/Garrison (discovered 3 exits: *Fac x3) -7/Factory (discovered 2 exits: *Fac / [*Low]) -6/Factory (discovered 2 exits: *Low x2) -6/Lower Caves -6/Lower Caves -6/Zion (discovered 2 exits: [*Dee] / [*Pro]) -6/Deep Caves -5/Proximity Caves History --------- Turn | Location | Event 39 | -11/Scrapyard | Discovered new exit (range 15) 57 | -11/Scrapyard | Entered Materials 240 | -10/Materials | Discovered new exit (range 15) 327 | -10/Materials | Build established: Mutant 544 | -10/Materials | Discovered new exit (range 16) 706 | -10/Materials | Discovered new exit (range 9) 730 | -10/Materials | Entered Mines 784 | -10/Mines | Discovered new exit (range 7) 803 | -10/Mines | Learned location of Storage (-7) 974 | -10/Mines | Assembled infested the area 1003 | -10/Mines | Met 8R-AWN 1010 | -10/Mines | Destroyed 7 combat bots 1129 | -10/Mines | Discovered new exit (range 5) 1133 | -10/Mines | Entered Exiles 1161 | -10/Exiles | Welcomed by 8R-AWN 1179 | -10/Exiles | Met EX-HEX 1230 | -10/Exiles | Met EX-DEC 1235 | -10/Exiles | Learned location of Zion (-6) 1315 | -10/Exiles | Met EX-BIN 1331 | -10/Exiles | Aligned with FarCom system 1332 | -10/Exiles | Given EX-Vault access code 1361 | -10/Exiles | Opened EX-Vault 1370 | -10/Exiles | Found Army-in-a-Box 1393 | -10/Exiles | Warned to stay clear of 0b10 Research branches 1469 | -10/Exiles | Discovered new exit (range 12) 1483 | -10/Exiles | Left Exiles lab with Army-in-a-Box 1483 | -10/Exiles | Entered Mines 1586 | -9/Mines | Discovered new exit (range 15) 1605 | -9/Mines | Entered Materials 1605 | -8/Materials | Evolved 4 slots: Utility x4 1759 | -8/Materials | Lost 5 parts (1p1n2u1w) 2612 | -8/Materials | Build established: Scavenger-Mutant 2629 | -8/Materials | Discovered new exit (range 8) 3099 | -8/Materials | Identified exit to Garrison 3099 | -8/Materials | Entered Garrison 3158 | -8/Garrison | Triggered checkpoint 3378 | -8/Garrison | Triggered checkpoint 3392 | -8/Garrison | Garrison Relay disabled 3422 | -8/Garrison | Build established: Mutant 3536 | -8/Garrison | Triggered checkpoint 3562 | -8/Garrison | Triggered checkpoint 3580 | -8/Garrison | Triggered checkpoint 3705 | -8/Garrison | Discovered new exit (range 17) 3850 | -8/Garrison | Triggered checkpoint 3910 | -8/Garrison | Garrison Relay disabled 4204 | -8/Garrison | Discovered new exit (range 10) 4252 | -8/Garrison | Installed Relay Interface Framework 4332 | -8/Garrison | Triggered checkpoint 4381 | -8/Garrison | Garrison Relay disabled 5072 | -8/Garrison | Discovered new exit (range 11) 5099 | -8/Garrison | Entered Factory 5099 | -7/Factory | Evolved 2 slots: Propulsion x2 5118 | -7/Factory | Build established: Scavenger-Mutant 5493 | -7/Factory | Fabricated O-16 Technician? 5518 | -7/Factory | Garrison activated, responded to threat 5673 | -7/Factory | Discovered new exit (range 12) 5794 | -7/Factory | Cargo convoy interrupted 5797 | -7/Factory | Build established: Mutant 5822 | -7/Factory | Discovered new exit (range 15) 5899 | -7/Factory | First assault squad dispatched 6018 | -7/Factory | Entered another Factory area 6018 | -6/Factory | Evolved 2 slots: Power x1, Weapon x1 6102 | -6/Factory | Fabricated O-16 Technician? 6717 | -6/Factory | Identified exit to Lower Caves 7111 | -6/Factory | Fabricated M-13 Machinist? 7150 | -6/Factory | Entered Lower Caves 7150 | -6/Lower Caves | Accompanied by 1 ally 7359 | -6/Lower Caves | Learned Factory stockpile data 7752 | -6/Lower Caves | Encountered a Warlord checkpoint 7777 | -6/Lower Caves | Discovered new exit (range 16) 7798 | -6/Lower Caves | Entered another Lower Caves area 7798 | -6/Lower Caves | Accompanied by 1 ally 8088 | -6/Lower Caves | Build established: Tank 8100 | -6/Lower Caves | Discovered new exit (range 15) 8168 | -6/Lower Caves | Entered Zion 8319 | -6/Zion | Discovered new exit (range 14) 8380 | -6/Zion | Found Relay Coupler [Programmer] 8420 | -6/Zion | Build established: Mutant 8565 | -6/Zion | RIF detected upon attempting to enter Zion 8565 | -6/Zion | Attacked by Zionites 8690 | -6/Zion | Lost 3 parts (1p1u1w) 9172 | -6/Zion | Destroyed Imprinter 9174 | -6/Zion | Build established: Scavenger-Tank 9187 | -6/Zion | Extracted access codes from Imprinter's data core 9306 | -6/Zion | Opened final containment barrier to the Deep Caves 9345 | -6/Zion | Discovered new exit (range 3) 9345 | -6/Zion | Saw the warning signs outside the Deep Caves entrance 9354 | -6/Zion | Entered Deep Caves 9596 | -6/Deep Caves | Found Prototype Protection 9597 | -6/Deep Caves | Identified Zio. Weapon Casing 9684 | -6/Deep Caves | Z-Facility disabled 9939 | -6/Deep Caves | Found Surveybot 24 Scanner 9944 | -6/Deep Caves | Found Surveybot 24 Chip 9945 | -6/Deep Caves | Discovered new exit (range 10) 9984 | -6/Deep Caves | Build established: Scavenger-Mutant 10602 | -6/Deep Caves | Spotted as-89008 10636 | -6/Deep Caves | Destroyed as-89008 10652 | -6/Deep Caves | Triggered Deep Caves wall 10658 | -6/Deep Caves | Exposed GOLEM chamber 10664 | -6/Deep Caves | Destroyed AS-50195 10679 | -6/Deep Caves | Spotted AS-41603 10688 | -6/Deep Caves | Destroyed 37 combat bots 10696 | -6/Deep Caves | Found GOLEM Unit 10700 | -6/Deep Caves | System corruption reached 10% 10712 | -6/Deep Caves | Core integrity fell below 50% 10813 | -6/Deep Caves | Lost 11 parts (1p2n3u5w) 10856 | -6/Deep Caves | Found GOLEM Unit 10985 | -6/Deep Caves | Destroyed AS-41603 11018 | -6/Deep Caves | Destroyed 23 combat bots 11025 | -6/Deep Caves | Lost 4 parts (1p1n1u1w) 11085 | -6/Deep Caves | Spotted as-34097 11087 | -6/Deep Caves | Spotted as-92378 11094 | -6/Deep Caves | Spotted as-71934 11095 | -6/Deep Caves | Spotted as-87748 11095 | -6/Deep Caves | Spotted as-55724 11095 | -6/Deep Caves | Spotted as-66400 11095 | -6/Deep Caves | Spotted as-37975 11115 | -6/Deep Caves | Spotted as-27379 11128 | -6/Deep Caves | Destroyed as-71934 11141 | -6/Deep Caves | Core integrity fell below 20% 11162 | -6/Deep Caves | Entered Proximity Caves 11178 | -5/Proximity Caves | Lost 4 parts (1n2u1w) 11697 | -5/Proximity Caves | Build established: Golem 11803 | -5/Proximity Caves | Spotted B-75 Beast 11913 | -5/Proximity Caves | Destroyed B-75 Beast 12143 | -5/Proximity Caves | Destroyed by G-50 Soldier with Heavy Laser Last Messages --------------- 11892_ Acquired 4 matter. 11900_ System corrupted: Asb. Focal Cannon failed to cycle. 11902_ System corrupted: Substantial component data lost. 11913_ Coolant Injector melted. 11913_ B-75 Beast destroyed. 11917_ Imp. Cooling System fries itself beyond repair. 11921_ System corrupted: Matter fused (-9). 11924_ Rnf. Deuterium Engine fries itself beyond repair. 11924_ Imp. Medium Treads fries itself beyond repair. 11936_ Acquired 85 matter. 11939_ System corrupted: Matter fused (-9). 11949_ Acquired 3 matter. 11951_ Acquired 2 matter. 11953_ Acquired 19 matter. 11955_ Acquired 4 matter. 11974_ System corrupted: Energy discharge (-440). 12042_ System corrupted: Matter fused (-9). 12059_ System corrupted: Energy discharge (-407). 12116_ System corrupted: Energy discharge (-231). 12136_ =0FBROXQ&C5